fUSD/lending_fUSD_20250814
["ID","MTS","AMOUNT","RATE_DAILY","PERIOD"]
[379221036,1755195052612,-419.288261,0.00027397,7]
[379221037,1755195052621,-772.465308,0.00027397,7]
[379221038,1755195052631,-258.551651,0.00027397,7]
[379221039,1755195052641,-412.95,0.00027397,2]
[379221040,1755195052651,-400.0,0.00027397,2]
[379221041,1755195052661,-419.288261,0.00027397,7]
[379221042,1755195052671,-400.0,0.00027397,2]
[379221043,1755195052681,-772.465308,0.00027397,7]
[379221044,1755195052691,-258.551651,0.00027397,7]
[379221045,1755195052702,-772.465308,0.00027397,7]
[379221046,1755195052712,-400.0,0.00027397,2]
[379221047,1755195052722,-258.551651,0.00027397,7]
[379221048,1755195052732,-772.465308,0.00027397,7]
[379221049,1755195052742,-258.551651,0.00027397,7]
[379221050,1755195052752,-597.81,0.00027397,2]
[379221051,1755195052763,-258.551651,0.00027397,7]
[379221052,1755195052773,-772.465308,0.00027397,7]
[379221053,1755195052783,-258.551651,0.00027397,7]
[379221054,1755195052794,-400.0,0.00027397,2]
[379221055,1755195052804,-5000.0,0.00027397,2]
[379221056,1755195052814,-772.465308,0.00027397,7]
[379221057,1755195052824,-258.551651,0.00027397,7]
[379221058,1755195052834,-772.465308,0.00027397,7]
[379221059,1755195052843,-2143.34,0.00027397,2]
[379221060,1755195052853,-400.0,0.00027397,2]
[379221061,1755195052865,-1842.19,0.00027397,2]
[379221062,1755195052877,-400.0,0.00027397,2]
[379221063,1755195052887,-1075.43,0.00027397,2]
[379221064,1755195052897,-400.0,0.00027397,2]
[379221065,1755195052907,-4811.79,0.00027397,2]
[379221066,1755195052919,-500.0,0.00027397,2]
[379221067,1755195052929,-467.3,0.00027397,2]
[379221068,1755195052940,-500.0,0.00027397,2]
[379221069,1755195052951,-500.0,0.00027397,2]
[379221070,1755195052964,-500.0,0.00027397,2]
[379221071,1755195052974,-500.0,0.00027397,2]
[379221072,1755195052984,-500.0,0.00027397,2]
[379221073,1755195052994,-500.0,0.00027397,2]
[379221074,1755195053004,-500.0,0.00027397,2]
[379221075,1755195053014,-1407.34,0.00027397,2]
[379221076,1755195053022,-500.0,0.00027397,2]
[379221077,1755195053031,-581.62,0.00027397,2]
[379221078,1755195053041,-500.0,0.00027397,2]
[379221079,1755195053051,-400.0,0.00027397,2]
[379221080,1755195053061,-500.0,0.00027397,2]
[379221081,1755195053071,-1990.72,0.00027397,2]
[379221082,1755195053081,-500.0,0.00027397,2]
[379221083,1755195053091,-500.0,0.00027397,2]
[379221084,1755195053101,-500.0,0.00027397,2]
[379221085,1755195053112,-500.0,0.00027397,2]
[379221086,1755195053123,-402.80480812,0.00027397,2]
[379221087,1755195053134,-414.7,0.00027397,2]
[379221088,1755195053144,-445.71,0.00027397,2]
[379221089,1755195053154,-400.0,0.00027397,2]
[379221090,1755195053164,-842.76,0.00027397,2]
[379221091,1755195053175,-400.0,0.00027397,2]
[379221092,1755195053186,-400.0,0.00027397,2]
[379221093,1755195053197,-400.0,0.00027397,2]
[379221094,1755195053208,-4320.29,0.00027397,2]
[379221095,1755195053218,-3058.61,0.00027397,2]
[379221096,1755195053228,-529.46,0.00027397,2]
[379221097,1755195053239,-400.0,0.00027397,2]
[379221098,1755195053250,-2917.09,0.00027397,2]
[379221099,1755195053260,-504.78118852,0.00027397,2]
[379221100,1755195053270,-400.0,0.00027397,2]
[379221101,1755195053280,-753.96,0.00027397,2]
[379221102,1755195053290,-400.0,0.00027397,2]
[379221103,1755195053301,-1688.43,0.00027397,2]
[379221104,1755195053311,-400.0,0.00027397,2]
[379221105,1755195053322,-440.34,0.00027397,2]
[379221106,1755195053336,-400.0,0.00027397,2]
[379221107,1755195053346,-5774.53,0.00027397,2]
[379221108,1755195053361,-400.0,0.00027397,2]
[379221109,1755195053371,-400.0,0.00027397,2]
[379221110,1755195053382,-400.0,0.00027397,2]
[379221111,1755195053392,-400.0,0.00027397,2]
[379221112,1755195053403,-400.0,0.00027397,2]
[379221113,1755195053414,-2570.33,0.00027397,2]
[379221114,1755195053425,-400.0,0.00027397,2]
[379221115,1755195053436,-400.0,0.00027397,2]
[379221116,1755195053447,-430.26,0.00027397,2]
[379221117,1755195053458,-2544.44,0.00027397,2]
[379221118,1755195053470,-400.0,0.00027397,2]
[379221119,1755195053481,-400.0,0.00027397,2]
[379221120,1755195053492,-400.0,0.00027397,2]
[379221121,1755195053503,-400.0,0.00027397,2]
[379221122,1755195053839,-494.23,0.00027397,2]
[379221123,1755195053849,-400.0,0.00027397,2]
[379221124,1755195053859,-1108.25,0.00027397,2]
[379221125,1755195053874,-3926.49,0.00027397,2]
[379221126,1755195053885,-3501.21,0.00027397,2]
[379221127,1755195053897,-1734.44,0.00027397,2]
[379221128,1755195053907,-500.0,0.00027397,2]
[379221129,1755195053920,-400.0,0.00027397,2]
[379221130,1755195053930,-427.13751237,0.00027397,2]
[379221131,1755195053942,-400.0,0.00027397,2]
[379221132,1755195053952,-400.0,0.00027397,2]
[379221133,1755195053962,-508.02,0.00027397,2]
[379221134,1755195053973,-400.0,0.00027397,2]
[379221135,1755195053983,-400.0,0.00027397,2]
[379221136,1755195053994,-1066.99,0.00027397,2]
[379221137,1755195054006,-1665.69,0.00027397,2]
[379221138,1755195054016,-400.0,0.00027397,2]
[379221139,1755195054027,-645.27,0.00027397,2]
[379221140,1755195054040,-5992.69,0.00027397,2]
[379221141,1755195054051,-2664.2,0.00027397,2]
[379221142,1755195054061,-400.0,0.00027397,2]
[379221143,1755195054071,-400.0,0.00027397,2]
[379221144,1755195054081,-669.91,0.00027397,2]
[379221145,1755195054090,-489.01,0.00027397,2]
[379221146,1755195054100,-4143.11,0.00027397,2]
[379221147,1755195054110,-400.0,0.00027397,2]
[379221148,1755195054119,-400.0,0.00027397,2]
[379221149,1755195054129,-400.0,0.00027397,2]
[379221150,1755195054139,-400.0,0.00027397,2]
[379221151,1755195054149,-400.0,0.00027397,2]
[379221152,1755195054159,-407.15781392,0.00027397,2]
[379221153,1755195054169,-453.16,0.00027397,2]
[379221154,1755195054179,-1074.36,0.00027397,2]
[379221155,1755195054189,-1266.46,0.00027397,2]
[379221156,1755195054200,-400.0,0.00027397,2]
[379221157,1755195054211,-400.0,0.00027397,2]
[379221158,1755195054223,-500.0,0.00027397,2]
[379221159,1755195054233,-858.93,0.00027397,2]
[379221160,1755195054243,-500.0,0.00027397,2]
[379221161,1755195054255,-5806.98,0.00027397,2]
[379221162,1755195054265,-1079.85,0.00027397,2]
[379221163,1755195054276,-2290.42,0.00027397,2]
[379221164,1755195054287,-400.0,0.00027397,2]
[379221165,1755195054298,-400.0,0.00027397,2]
[379221166,1755195054308,-572.87,0.00027397,2]
[379221167,1755195054318,-1092.47,0.00027397,2]
[379221168,1755195054328,-1854.94,0.00027397,2]
[379221169,1755195054338,-1601.33,0.00027397,2]
[379221170,1755195054348,-400.0,0.00027397,2]
[379221171,1755195054358,-400.0,0.00027397,2]
[379221172,1755195054368,-894.48,0.00027397,2]
[379221173,1755195054378,-896.1,0.00027397,2]
[379221174,1755195054387,-513.29,0.00027397,2]
[379221175,1755195054397,-400.0,0.00027397,2]
[379221176,1755195054407,-400.0,0.00027397,2]
[379221177,1755195054416,-2247.18,0.00027397,2]
[379221178,1755195054425,-831.57,0.00027397,2]
[379221179,1755195054435,-401.03582159,0.00027397,2]
[379221180,1755195054445,-1626.14,0.00027397,2]
[379221181,1755195054455,-3747.51,0.00027397,2]
[379221182,1755195054464,-853.24,0.00027397,2]
[379221183,1755195054474,-400.0,0.00027397,2]
[379221184,1755195054484,-400.0,0.00027397,2]
[379221185,1755195054495,-400.0,0.00027397,2]
[379221186,1755195054505,-423.27,0.00027397,2]
[379221187,1755195054515,-5016.83,0.00027397,2]
[379221188,1755195054526,-2616.32,0.00027397,2]
[379221189,1755195054537,-400.0,0.00027397,2]
[379221190,1755195054549,-1462.96,0.00027397,2]
[379221191,1755195054560,-1790.19,0.00027397,2]
[379221192,1755195054570,-400.0,0.00027397,2]
[379221193,1755195054579,-400.0,0.00027397,2]
[379221194,1755195054590,-400.0,0.00027397,2]
[379221195,1755195054600,-515.15,0.00027397,2]
[379221196,1755195054611,-2550.8,0.00027397,2]
[379221197,1755195054621,-3155.89,0.00027397,2]
[379221198,1755195054631,-400.0,0.00027397,2]
[379221199,1755195054642,-5394.02,0.00027397,2]
[379221200,1755195054652,-460.86,0.00027397,2]
[379221201,1755195054664,-921.44,0.00027397,2]
[379221202,1755195054676,-400.0,0.00027397,2]
[379221203,1755195054687,-400.0,0.00027397,2]
[379221204,1755195054697,-400.0,0.00027397,2]
[379221205,1755195054708,-829.22,0.00027397,2]
[379221206,1755195054719,-1133.26,0.00027397,2]
[379221207,1755195054729,-400.0,0.00027397,2]
[379221208,1755195054740,-489.01,0.00027397,2]
[379221209,1755195054750,-400.0,0.00027397,2]
[379221210,1755195054761,-1172.59,0.00027397,2]
[379221211,1755195054771,-400.0,0.00027397,2]
[379221212,1755195054782,-741.68,0.00027397,2]
[379221213,1755195054792,-583.43,0.00027397,2]
[379221214,1755195054802,-1709.74,0.00027397,2]
[379221215,1755195054812,-1167.62,0.00027397,2]
[379221216,1755195054822,-400.0,0.00027397,2]
[379221217,1755195054832,-2872.18,0.00027397,2]
[379221218,1755195054842,-400.0,0.00027397,2]
[379221219,1755195054852,-400.0,0.00027397,2]
[379221220,1755195054865,-400.0,0.00027397,2]
[379221221,1755195054876,-400.0,0.00027397,2]
[379221222,1755195054886,-400.0,0.00027397,2]
[379221223,1755195054897,-400.0,0.00027397,2]
[379221224,1755195054908,-400.0,0.00027397,2]
[379221225,1755195054919,-510.56878289,0.00027397,2]
[379221226,1755195054931,-400.0,0.00027397,2]
[379221227,1755195054944,-4209.13,0.00027397,2]
[379221228,1755195054954,-2730.9,0.00027397,2]
[379221229,1755195054964,-400.0,0.00027397,2]
[379221230,1755195054974,-400.0,0.00027397,2]
[379221231,1755195054984,-1824.76,0.00027397,2]
[379221232,1755195054994,-400.0,0.00027397,2]
[379221233,1755195055003,-400.0,0.00027397,2]
[379221234,1755195055014,-1218.86,0.00027397,2]
[379221235,1755195055024,-463.84,0.00027397,2]
[379221236,1755195055037,-5710.74,0.00027397,2]
[379221237,1755195055049,-400.0,0.00027397,2]
[379221238,1755195055059,-400.0,0.00027397,2]
[379221239,1755195055070,-1121.81,0.00027397,2]
[379221240,1755195055081,-400.0,0.00027397,2]
[379221241,1755195055091,-782.01,0.00027397,2]
[379221242,1755195055103,-929.73,0.00027397,2]
[379221243,1755195055113,-3207.01,0.00027397,2]
[379221244,1755195055124,-400.0,0.00027397,2]
[379221245,1755195055135,-550.7,0.00027397,2]
[379221246,1755195055146,-495.83,0.00027397,2]
[379221247,1755195055157,-657.95,0.00027397,2]
[379221248,1755195055169,-488.07,0.00027397,2]
[379221249,1755195055179,-400.0,0.00027397,2]
[379221250,1755195055190,-753.82,0.00027397,2]
[379221251,1755195055200,-400.0,0.00027397,2]
[379221252,1755195055211,-1015.72,0.00027397,2]
[379221253,1755195055220,-2857.86,0.00027397,2]
[379221254,1755195055231,-400.0,0.00027397,2]
[379221255,1755195055240,-1157.7,0.00027397,2]
[379221256,1755195055251,-400.0,0.00027397,2]
[379221257,1755195055262,-3433.9,0.00027397,2]
[379221258,1755195055273,-400.0,0.00027397,2]
[379221259,1755195055287,-1622.0,0.00027397,2]
[379221260,1755195055298,-2853.71,0.00027397,2]
[379221261,1755195055309,-3352.5,0.00027397,2]
[379221262,1755195055320,-400.0,0.00027397,2]
[379221263,1755195055331,-3284.75,0.00027397,2]
[379221264,1755195055341,-2857.39,0.00027397,2]
[379221265,1755195055351,-400.0,0.00027397,2]
[379221266,1755195055361,-1936.56,0.00027397,2]
[379221267,1755195055372,-400.0,0.00027397,2]
[379221268,1755195055383,-400.0,0.00027397,2]
[379221269,1755195055394,-400.0,0.00027397,2]
[379221270,1755195055405,-2656.05,0.00027397,2]
[379221271,1755195055417,-400.0,0.00027397,2]
[379221272,1755195055429,-400.0,0.00027397,2]
[379221273,1755195055440,-400.0,0.00027397,2]
[379221274,1755195055452,-400.0,0.00027397,2]
[379221275,1755195055463,-400.0,0.00027397,2]
[379221276,1755195055474,-400.0,0.00027397,2]
[379221277,1755195055485,-605.87,0.00027397,2]
[379221278,1755195055496,-2296.29,0.00027397,2]
[379221279,1755195055508,-400.0,0.00027397,2]
[379221280,1755195055519,-400.0,0.00027397,2]
[379221281,1755195055530,-400.0,0.00027397,2]
[379221282,1755195055543,-1509.54,0.00027397,2]
[379221283,1755195055553,-447.61,0.00027397,2]
[379221284,1755195055563,-530.39117,0.00027397,2]
[379221285,1755195055573,-701.06,0.00027397,2]
[379221286,1755195055585,-400.0,0.00027397,2]
[379221287,1755195055596,-3984.92,0.00027397,2]
[379221288,1755195055606,-400.0,0.00027397,2]
[379221289,1755195055617,-250.0,0.00027397,2]
[379221290,1755195055627,-3656.87,0.00027397,2]
[379221291,1755195055638,-1679.138121,0.00027397,7]
[379221292,1755195055649,-695.41,0.00027397,2]
[379221293,1755195055660,-1679.138121,0.00027397,7]
[379221294,1755195055670,-400.0,0.00027397,2]
[379221295,1755195055680,-1740.37,0.00027397,2]
[379221296,1755195055690,-400.0,0.00027397,2]
[379221297,1755195055700,-400.0,0.00027397,2]
[379221298,1755195055710,-565.99,0.00027397,2]
[379221299,1755195055721,-400.0,0.00027397,2]
[379221300,1755195055731,-871.42,0.00027397,2]
[379221301,1755195055740,-400.0,0.00027397,2]
[379221302,1755195055750,-1679.138121,0.00027397,7]
[379221303,1755195055760,-400.0,0.00027397,2]
[379221304,1755195055769,-1679.138121,0.00027397,7]
[379221305,1755195055779,-400.0,0.00027397,2]
[379221306,1755195055789,-1711.37,0.00027397,2]
[379221307,1755195055800,-825.36,0.00027397,2]
[379221308,1755195055810,-516.04,0.00027397,2]
[379221309,1755195055820,-400.0,0.00027397,2]
[379221310,1755195055830,-3160.43,0.00027397,2]
[379221311,1755195055840,-1862.4,0.00027397,2]
[379221312,1755195055850,-570.4,0.00027397,2]
[379221313,1755195055861,-400.0,0.00027397,2]
[379221314,1755195055875,-848.37,0.00027397,2]
[379221315,1755195055893,-1106.34,0.00027397,2]
[379221316,1755195055907,-5105.35,0.00027397,2]
[379221317,1755195055916,-400.0,0.00027397,2]
[379221318,1755195055927,-2349.69,0.00027397,2]
[379221319,1755195055937,-5395.1,0.00027397,2]
[379221320,1755195055948,-1230.83,0.00027397,2]
[379221321,1755195055958,-400.0,0.00027397,2]
[379221322,1755195055968,-400.0,0.00027397,2]
[379221323,1755195055978,-151.0,0.00027397,7]
[379221324,1755195055988,-742.77,0.00027397,2]
[379221325,1755195055997,-151.0,0.00027397,7]
[379221326,1755195056007,-1460.54,0.00027397,2]
[379221327,1755195056018,-1469.83,0.00027397,2]
[379221328,1755195056028,-735.13,0.00027397,2]
[379221329,1755195056040,-2132.28,0.00027397,2]
[379221330,1755195056051,-441.47,0.00027397,2]
[379221331,1755195056062,-840.78,0.00027397,2]
[379221332,1755195056071,-512.88,0.00027397,2]
[379221333,1755195056081,-691.09,0.00027397,2]
[379221334,1755195056091,-400.0,0.00027397,2]
[379221335,1755195056100,-1232.24,0.00027397,2]
[379221336,1755195056110,-400.0,0.00027397,2]
[379221337,1755195056120,-401.246059,0.00027397,2]
[379221338,1755195056131,-1291.44,0.00027397,2]
[379221339,1755195056141,-1937.78,0.00027397,2]
[379221340,1755195056152,-4447.12,0.00027397,2]
[379221341,1755195056162,-400.0,0.00027397,2]
[379221342,1755195056172,-400.0,0.00027397,2]
[379221343,1755195056182,-665.24,0.00027397,2]
[379221344,1755195056192,-3912.74,0.00027397,2]
[379221345,1755195056202,-4192.45,0.00027397,2]
[379221346,1755195056213,-2721.97,0.00027397,2]
[379221347,1755195056223,-409.66183507,0.00027397,2]
[379221348,1755195056235,-647.35,0.00027397,2]
[379221349,1755195056248,-401.08536678,0.00027397,2]
[379221350,1755195056258,-400.0,0.00027397,2]
[379221351,1755195056269,-877.51,0.00027397,2]
[379221352,1755195056279,-3072.74,0.00027397,2]
[379221353,1755195056292,-4968.37,0.00027397,2]
[379221354,1755195056303,-4172.71235,0.00027397,2]
[379221355,1755195056314,-1092.03,0.00027397,2]
[379221356,1755195056325,-400.70671271,0.00027397,2]
[379221357,1755195056336,-3639.44,0.00027397,2]
[379221358,1755195056346,-400.0,0.00027397,2]
[379221359,1755195056358,-400.0,0.00027397,2]
[379221360,1755195056563,-400.0,0.00027397,2]
[379221361,1755195056574,-2492.74,0.00027397,2]
[379221362,1755195056584,-400.0,0.00027397,2]
[379221363,1755195056594,-681.82,0.00027397,2]
[379221364,1755195056604,-862.73062,0.00027397,7]
[379221365,1755195056614,-400.0,0.00027397,2]
[379221366,1755195056624,-862.73062,0.00027397,7]
[379221367,1755195056634,-862.73062,0.00027397,7]
[379221368,1755195056644,-862.73062,0.00027397,7]
[379221369,1755195056654,-400.0,0.00027397,2]
[379221370,1755195056665,-862.73062,0.00027397,7]
[379221371,1755195056676,-400.0,0.00027397,2]
[379221372,1755195056686,-1149.26,0.00027397,2]
[379221373,1755195056696,-400.0,0.00027397,2]
[379221374,1755195056707,-658.1,0.00027397,2]
[379221375,1755195056717,-1254.82,0.00027397,2]
[379221376,1755195056726,-862.73062,0.00027397,7]
[379221377,1755195056735,-1104.63,0.00027397,2]
[379221378,1755195056745,-2577.69,0.00027397,2]
[379221379,1755195056756,-862.73062,0.00027397,7]
[379221380,1755195056766,-1192.16,0.00027397,2]
[379221381,1755195056776,-862.73062,0.00027397,7]
[379221382,1755195056787,-546.69,0.00027397,2]
[379221383,1755195056797,-542.99,0.00027397,2]
[379221384,1755195056807,-862.73062,0.00027397,7]
[379221385,1755195056817,-805.07,0.00027397,2]
[379221386,1755195056826,-862.73062,0.00027397,7]
[379221387,1755195056836,-406.51,0.00027397,2]
[379221388,1755195056846,-400.0,0.00027397,2]
[379221389,1755195056856,-3389.59,0.00027397,2]
[379221390,1755195056869,-400.0,0.00027397,2]
[379221391,1755195056879,-443.12,0.00027397,2]
[379221392,1755195056890,-400.0,0.00027397,2]
[379221393,1755195056900,-400.0,0.00027397,2]
[379221394,1755195056911,-500.0,0.00027397,2]
[379221395,1755195056920,-500.0,0.00027397,2]
[379221396,1755195056929,-500.0,0.00027397,2]
[379221397,1755195056939,-500.0,0.00027397,2]
[379221398,1755195056949,-400.0,0.00027397,2]
[379221399,1755195056958,-500.0,0.00027397,2]
[379221400,1755195056968,-500.0,0.00027397,2]
[379221401,1755195056978,-500.0,0.00027397,2]
[379221402,1755195056987,-500.0,0.00027397,2]
[379221403,1755195056998,-494.73319248,0.00027397,2]
[379221404,1755195057010,-500.0,0.00027397,2]
[379221405,1755195057019,-746.44,0.00027397,2]
[379221406,1755195057030,-500.0,0.00027397,2]
[379221407,1755195057040,-400.0,0.00027397,2]
[379221408,1755195057049,-948.64,0.00027397,2]
[379221409,1755195057058,-500.0,0.00027397,2]
[379221410,1755195057068,-500.0,0.00027397,2]
[379221411,1755195057077,-500.0,0.00027397,2]
[379221412,1755195057086,-983.8,0.00027397,2]
[379221413,1755195057096,-500.0,0.00027397,2]
[379221414,1755195057106,-541.49327109,0.00027397,2]
[379221415,1755195057115,-228.45769924,0.00027397,2]
[379221416,1755195057124,-3064.79,0.00027397,2]
[379221417,1755195057133,-400.0,0.00027397,2]
[379221418,1755195057142,-547.57,0.00027397,2]
[379221419,1755195057152,-2229.88,0.00027397,2]
[379221420,1755195057166,-400.0,0.00027397,2]
[379221421,1755195057175,-525.91,0.00027397,2]
[379221422,1755195057185,-1051.49,0.00027397,2]
[379221423,1755195057194,-4065.48,0.00027397,2]
[379221424,1755195057203,-1231.44,0.00027397,2]
[379221425,1755195057213,-284.507603,0.00027397,2]
[379221426,1755195057222,-483.86,0.00027397,2]
[379221427,1755195057232,-400.0,0.00027397,2]
[379221428,1755195057241,-3327.91,0.00027397,2]
[379221429,1755195057252,-447.36,0.00027397,2]
[379221430,1755195057262,-704.41,0.00027397,2]
[379221431,1755195057272,-400.0,0.00027397,2]
[379221432,1755195057281,-4305.21,0.00027397,2]
[379221433,1755195057295,-4305.21,0.00027397,2]
[379221434,1755195057305,-4305.21,0.00027397,2]
[379221435,1755195057314,-907.42,0.00027397,2]
[379221436,1755195057324,-4305.21,0.00027397,2]
[379221437,1755195057335,-400.0,0.00027397,2]
[379221438,1755195057345,-4305.21,0.00027397,2]
[379221439,1755195057355,-4305.21,0.00027397,2]
[379221440,1755195057365,-556.31,0.00027397,2]
[379221441,1755195057375,-1368.58,0.00027397,2]
[379221442,1755195057384,-2415.32,0.00027397,2]
[379221443,1755195057394,-4305.21,0.00027397,2]
[379221444,1755195057403,-1694.38,0.00027397,2]
[379221445,1755195057413,-400.0,0.00027397,2]
[379221446,1755195057423,-4305.21,0.00027397,2]
[379221447,1755195057433,-217.670382,0.00027397,2]
[379221448,1755195057443,-1874.6,0.00027397,2]
[379221449,1755195057453,-4305.21,0.00027397,2]
[379221450,1755195057462,-540.75868278,0.00027397,2]
[379221451,1755195057472,-4305.21,0.00027397,2]
[379221452,1755195057482,-4305.21,0.00027397,2]
[379221453,1755195057491,-780.09,0.00027397,2]
[379221454,1755195057500,-4305.21,0.00027397,2]
[379221455,1755195057510,-4305.21,0.00027397,2]
[379221456,1755195057522,-4305.21,0.00027397,2]
[379221457,1755195057533,-3685.16,0.00027397,2]
[379221458,1755195057543,-3037.03,0.00027397,2]
[379221459,1755195057553,-1479.5,0.00027397,2]
[379221460,1755195057572,-4305.21,0.00027397,2]
[379221461,1755195057582,-4305.21,0.00027397,2]
[379221462,1755195057591,-4305.21,0.00027397,2]
[379221463,1755195057601,-1910.53,0.00027397,2]
[379221464,1755195057611,-4305.21,0.00027397,2]
[379221465,1755195057620,-4305.21,0.00027397,2]
[379221466,1755195057630,-727.53,0.00027397,2]
[379221467,1755195057640,-4305.21,0.00027397,2]
[379221468,1755195057649,-4305.21,0.00027397,2]
[379221469,1755195057658,-4305.21,0.00027397,2]
[379221470,1755195057667,-4305.21,0.00027397,2]
[379221471,1755195057677,-4305.34530004,0.00027397,2]
[379221472,1755195057687,-400.0,0.00027397,2]
[379221473,1755195057698,-400.0,0.00027397,2]
[379221474,1755195057710,-400.0,0.00027397,2]
[379221475,1755195057720,-400.0,0.00027397,2]
[379221476,1755195057730,-400.0,0.00027397,2]
[379221477,1755195057739,-400.0,0.00027397,2]
[379221478,1755195057749,-400.0,0.00027397,2]
[379221479,1755195057758,-4479.231955,0.00027397,2]
[379221480,1755195057768,-400.0,0.00027397,2]
[379221481,1755195057777,-1104.13,0.00027397,2]
[379221482,1755195057788,-649.54,0.00027397,2]
[379221483,1755195057798,-1563.06,0.00027397,2]
[379221484,1755195057807,-6330.35,0.00027397,2]
[379221485,1755195057816,-1425.67,0.00027397,2]
[379221486,1755195057826,-3013.666345,0.00027397,2]
[379221487,1755195057836,-500.0,0.00027397,2]
[379221488,1755195057846,-1266.9,0.00027397,2]
[379221489,1755195057855,-4817.45,0.00027397,2]
[379221490,1755195057868,-500.0,0.00027397,2]
[379221491,1755195057879,-400.0,0.00027397,2]
[379221492,1755195057888,-400.0,0.00027397,2]
[379221493,1755195057898,-500.0,0.00027397,2]
[379221494,1755195057909,-400.0,0.00027397,2]
[379221495,1755195057919,-756.1,0.00027397,2]
[379221496,1755195057928,-500.0,0.00027397,2]
[379221497,1755195057940,-8767.18,0.00027397,2]
[379221498,1755195057950,-756.1,0.00027397,2]
[379221499,1755195057959,-500.0,0.00027397,2]
[379221500,1755195057969,-500.0,0.00027397,2]
[379221501,1755195057978,-756.1,0.00027397,2]
[379221502,1755195057987,-500.0,0.00027397,2]
[379221503,1755195057997,-3294.42,0.00027397,2]
[379221504,1755195058006,-570.29,0.00027397,2]
[379221505,1755195058015,-2211.19,0.00027397,2]
[379221506,1755195058026,-500.0,0.00027397,2]
[379221507,1755195058035,-500.0,0.00027397,2]
[379221508,1755195058044,-400.0,0.00027397,2]
[379221509,1755195058054,-500.0,0.00027397,2]
[379221510,1755195058064,-500.0,0.00027397,2]
[379221511,1755195058073,-500.0,0.00027397,2]
[379221512,1755195058083,-579.69,0.00027397,2]
[379221513,1755195058093,-756.1,0.00027397,2]
[379221514,1755195058103,-500.0,0.00027397,2]
[379221515,1755195058112,-756.1,0.00027397,2]
[379221516,1755195058122,-500.0,0.00027397,2]
[379221517,1755195058131,-400.0,0.00027397,2]
[379221518,1755195058142,-12000.0,0.00027397,7]
[379221519,1755195058152,-400.0,0.00027397,2]
[379221520,1755195058162,-756.1,0.00027397,2]
[379221521,1755195058171,-500.0,0.00027397,2]
[379221522,1755195058180,-2160.72,0.00027397,2]
[379221523,1755195058190,-756.1,0.00027397,2]
[379221524,1755195058199,-500.0,0.00027397,2]
[379221525,1755195058208,-12000.0,0.00027397,7]
[379221526,1755195058217,-500.0,0.00027397,2]
[379221527,1755195058228,-756.1,0.00027397,2]
[379221528,1755195058238,-756.1,0.00027397,2]
[379221529,1755195058247,-12000.0,0.00027397,7]
[379221530,1755195058257,-500.0,0.00027397,2]
[379221531,1755195058266,-756.1,0.00027397,2]
[379221532,1755195058275,-400.0,0.00027397,2]
[379221533,1755195058286,-500.0,0.00027397,2]
[379221534,1755195058296,-12000.0,0.00027397,7]
[379221535,1755195058305,-756.1,0.00027397,2]